bitfinex/quotes_ETHUSD_20251021
["timestamp","ask_amount","ask_price","bid_price","bid_amount"]
[1761009838690,16.82689197,3971.4,3971.3,0.002]
[1761009839058,24.53536997,3971.4,3971.3,0.002]
[1761009839798,24.57925831,3971.4,3971.3,0.002]
[1761009839973,24.46942431,3971.4,3971.3,0.002]
[1761009840664,15.72385731,3971.4,3971.3,0.002]
[1761009840970,16.12442531,3971.4,3971.3,0.002]
[1761009841162,15.23707131,3971.4,3971.3,0.002]
[1761009841369,5.0648774,3971.4,3971.3,0.002]
[1761009841885,4.96388834,3971.4,3971.3,0.002]
[1761009842090,1.77188834,3971.4,3971.3,0.002]
[1761009842284,4.96388834,3971.4,3971.3,0.002]
[1761009843098,1.77188834,3971.4,3971.3,0.002]
[1761009843297,4.99536338,3971.4,3971.3,0.002]
[1761009843496,4.96388834,3971.4,3971.3,0.4746]
[1761009843800,17.56341206,3971.4,3971.3,0.002]
[1761009843970,19.16659106,3971.4,3971.3,0.002]
[1761009844169,18.26894006,3971.4,3971.3,0.002]
[1761009844901,7.58089206,3971.4,3971.3,0.002]
[1761009845211,26.49170606,3971.4,3971.3,0.002]
[1761009845507,10.88957994,3971.4,3971.3,0.002]
[1761009845661,12.22454394,3971.4,3971.3,0.002]
[1761009846104,14.71509894,3971.4,3971.3,0.002]
[1761009846792,13.85044094,3971.4,3971.3,0.002]
[1761009846996,18.05030994,3971.4,3971.3,0.002]
[1761009847395,17.72240794,3971.4,3971.3,0.002]
[1761009847967,31.89426294,3971.4,3971.3,0.002]
[1761009848170,14.76120294,3971.4,3971.3,0.002]
[1761009848394,14.36689994,3971.4,3971.3,0.002]
[1761009848673,14.46589994,3971.4,3971.3,0.002]
[1761009849090,16.35217494,3971.4,3971.3,0.002]
[1761009849402,12.78694594,3971.4,3971.3,0.002]
[1761009849602,12.78794594,3971.4,3971.3,0.002]
[1761009849771,11.35854894,3971.4,3971.3,0.002]
[1761009850206,16.86939594,3971.4,3971.3,0.002]
[1761009850569,13.67739594,3971.4,3971.3,0.002]
[1761009850784,21.44514559,3971.4,3971.3,0.002]
[1761009851183,23.33422559,3971.4,3971.3,0.002]
[1761009852983,12.44817559,3971.4,3971.3,0.002]
[1761009853187,15.53918271,3971.4,3971.3,0.002]
[1761009854113,21.55929971,3971.4,3971.3,0.002]
[1761009854413,21.65829971,3971.4,3971.3,0.002]
[1761009854926,21.55929971,3971.4,3971.3,0.002]
[1761009855122,23.59212771,3971.4,3971.3,0.002]
[1761009856220,22.20544171,3971.4,3971.3,0.002]
[1761009857126,42.15764171,3971.4,3971.3,0.002]
[1761009857428,21.08870571,3971.4,3971.3,0.002]
[1761009857630,21.18969349,3971.4,3971.3,0.002]
[1761009858198,29.19032349,3971.4,3971.3,0.002]
[1761009859201,31.59032349,3971.4,3971.3,0.002]
[1761009859837,32.09720349,3971.4,3971.3,0.002]
[1761009860138,31.40624749,3971.4,3971.3,0.002]
[1761009860437,36.96735649,3971.4,3971.3,0.002]
[1761009861334,37.78848249,3971.4,3971.3,0.002]
[1761009862032,37.28782349,3971.4,3971.3,0.002]
[1761009862200,37.68282158,3971.4,3971.3,0.002]
[1761009863414,37.51489258,3971.4,3971.3,0.002]
[1761009864456,40.56717158,3971.4,3971.3,0.002]
[1761009865306,40.75781158,3971.4,3971.3,0.002]
[1761009865933,45.33356123,3971.4,3971.3,0.002]
[1761009866344,46.18109423,3971.4,3971.3,0.002]
[1761009866512,44.97473823,3971.4,3971.3,0.002]
[1761009866843,44.93084989,3971.4,3971.3,0.002]
[1761009867335,17.69236889,3971.4,3971.3,0.002]
[1761009867537,19.84732124,3971.4,3971.3,0.002]
[1761009867738,18.01292315,3971.4,3971.3,0.002]
[1761009867937,17.91392315,3971.4,3971.3,0.002]
[1761009868256,14.72192315,3971.4,3971.3,0.002]
[1761009868440,11.30885415,3971.4,3971.3,0.002]
[1761009868608,14.49985415,3971.4,3971.3,0.002]
[1761009869428,23.00324015,3971.4,3971.3,0.002]
[1761009869645,20.01755215,3971.4,3971.3,0.002]
[1761009870540,27.34417915,3971.4,3971.3,0.002]
[1761009870746,24.61273615,3971.4,3971.3,0.002]
[1761009871443,12.15863116,3971.4,3971.3,0.002]
[1761009871744,24.17580516,3971.4,3971.3,0.002]
[1761009872044,21.41461616,3971.4,3971.3,0.002]
[1761009872249,19.26022886,3971.4,3971.3,0.002]
[1761009872415,12.55362686,3971.4,3971.3,0.002]
[1761009872615,25.34832586,3971.4,3971.3,0.002]
[1761009872962,24.34832586,3971.4,3971.3,0.002]
[1761009873569,30.15900286,3971.4,3971.3,0.002]
[1761009873859,25.24009986,3971.4,3971.3,0.002]
[1761009874629,20.27423386,3971.4,3971.3,0.002]
[1761009874844,9.36262686,3971.4,3971.3,0.002]
[1761009875039,15.63273286,3971.4,3971.3,0.002]
[1761009875624,32.85845386,3971.4,3971.3,0.002]
[1761009875942,28.88876486,3971.4,3971.3,0.002]
[1761009876517,31.97934486,3971.4,3971.3,0.002]
[1761009876718,18.02214386,3971.4,3971.3,0.4483]
[1761009876939,19.06049686,3971.4,3971.3,0.4483]
[1761009877123,19.06049686,3971.4,3971.3,0.002]
[1761009877666,30.87167586,3971.4,3971.3,0.002]
[1761009877865,26.07236486,3971.4,3971.3,0.002]
[1761009878075,23.96671386,3971.4,3971.3,0.002]
[1761009878746,27.19363586,3971.4,3971.3,0.002]
[1761009879069,26.57481086,3971.4,3971.3,0.002]
[1761009879567,27.33391686,3971.4,3971.3,0.002]
[1761009880632,29.97104586,3971.4,3971.3,0.002]
[1761009880833,30.57692586,3971.4,3971.3,0.002]
[1761009881789,38.51194786,3971.4,3971.3,0.002]
[1761009882037,43.08769751,3971.4,3971.3,0.002]
[1761009882854,3.02513736,3971.0,3970.9,0.002]
[1761009883056,30.38157322,3971.0,3970.9,0.002]
[1761009883265,30.44909501,3971.0,3970.9,0.002]
[1761009883647,30.55010039,3971.0,3970.9,0.002]
[1761009883847,35.34508139,3971.0,3970.9,0.002]
[1761009884874,33.61782839,3971.0,3970.9,0.002]
[1761009885369,28.68305239,3971.0,3970.9,0.002]
[1761009885772,12.62089239,3971.0,3970.9,0.002]
[1761009885974,32.74935439,3971.0,3970.9,0.002]
[1761009886171,21.88035739,3971.0,3970.9,0.002]
[1761009886373,25.07135739,3971.0,3970.9,0.4483]
[1761009886879,32.92122482,3971.0,3970.9,0.4483]
[1761009887178,32.92122482,3971.0,3970.9,0.002]
[1761009887883,33.08670282,3971.0,3970.9,0.002]
[1761009888989,32.93219182,3971.0,3970.9,0.002]
[1761009889352,24.62291882,3971.0,3970.9,0.002]
[1761009889562,24.57902739,3971.0,3970.9,0.002]
[1761009889764,29.15477704,3971.0,3970.9,0.002]
[1761009889976,37.41562104,3971.0,3970.9,0.002]
[1761009890868,40.09547104,3971.0,3970.9,0.002]
[1761009891050,40.8892288,3971.0,3970.9,0.002]
[1761009891251,40.9882288,3971.0,3970.9,0.002]
[1761009891484,40.8892288,3971.0,3970.9,0.002]
[1761009891977,47.4835198,3971.0,3970.9,0.002]
[1761009892555,45.96929928,3971.0,3970.9,0.002]
[1761009892752,42.72133428,3971.0,3970.9,0.002]
[1761009892982,46.15531228,3971.0,3970.9,0.002]
[1761009893191,43.72355452,3971.0,3970.9,0.002]
[1761009893382,39.98772152,3971.0,3970.9,0.002]
[1761009893582,36.65814852,3971.0,3970.9,0.002]
[1761009894078,39.44024652,3971.0,3970.9,0.002]
[1761009894785,38.99657752,3971.0,3970.9,0.002]
[1761009894979,17.24053552,3971.0,3970.9,0.002]
[1761009895194,41.23911952,3971.0,3970.9,0.002]
[1761009895378,38.82343852,3971.0,3970.9,0.002]
[1761009895992,41.39254952,3971.0,3970.9,0.002]
[1761009896164,38.86738652,3971.0,3970.9,0.002]
[1761009896980,39.17899452,3971.0,3970.9,0.002]
[1761009897393,34.40340852,3971.0,3970.9,0.002]
[1761009898175,36.37584352,3971.0,3970.9,0.002]
[1761009899106,36.45764552,3971.0,3970.9,0.002]
[1761009900206,34.91209552,3971.0,3970.9,0.002]
[1761009901302,35.13541852,3971.0,3970.9,0.002]
[1761009901520,34.64860652,3971.0,3970.9,0.002]
[1761009901681,4.72064851,3971.0,3970.9,0.4661]
[1761009901871,7.80964313,3971.0,3970.9,0.4661]
[1761009902385,3.19,3971.0,3970.9,0.4661]
[1761009905706,3.22147821,3971.0,3970.9,0.4661]
[1761009908594,0.001,3972.0,3970.9,0.4661]
[1761009908827,0.1266,3972.0,3971.0,0.36581]
[1761009909124,0.01869198,3971.9,3971.3,0.1256]
[1761009909727,0.01869198,3971.9,3971.7,2.51781353]
[1761009910023,0.1266,3972.0,3971.7,2.51781353]
[1761009910228,0.1266,3972.0,3971.7,2.98191353]
[1761009910229,0.14529198,3972.0,3971.7,2.98191353]
[1761009910397,1.87329198,3972.0,3971.7,3.73902183]
[1761009910596,1.87329198,3972.0,3971.7,4.36471804]
[1761009910794,0.14529198,3972.0,3971.7,1.84690451]
[1761009911094,0.14529198,3972.0,3971.7,4.36471804]
[1761009913524,0.1266,3972.0,3971.7,4.36471804]
[1761009915638,0.001,3972.0,3971.7,4.49031804]
[1761009915843,0.001,3972.0,3971.7,4.51549617]
[1761009916146,0.001,3972.0,3971.7,4.49031804]
[1761009921553,0.001,3972.0,3971.7,7.67831804]
[1761009926765,0.001,3972.0,3971.7,8.05959804]
[1761009926966,0.001,3972.0,3971.7,8.18519804]
[1761009938567,0.001,3972.2,3971.7,8.18519804]
[1761009938568,0.001,3972.2,3972.1,3.02443998]
[1761009938745,0.001,3972.2,3972.1,6.74688398]
[1761009938954,0.001,3972.2,3972.1,7.33918398]
[1761009939349,0.001,3972.2,3972.1,7.46478398]
[1761009941087,0.001,3972.2,3972.1,9.19278398]
[1761009943689,0.001,3972.2,3972.1,7.46478398]
[1761009947990,0.001,3972.2,3972.1,6.49120398]
[1761009948170,0.001,3972.2,3972.1,6.65545998]
[1761009955325,0.001,3972.2,3972.1,6.65745998]
[1761009957921,0.001,3972.2,3972.1,7.03873998]
[1761009958085,0.001,3972.2,3972.1,7.16433998]
[1761009959295,0.001,3972.2,3972.1,6.65545998]
[1761009959492,0.001,3972.2,3972.1,7.57276999]
[1761009961336,0.001,3972.2,3972.1,5.95575998]
[1761009961546,0.001,3972.2,3972.1,5.70455998]
[1761009967240,0.1014,3972.2,3972.1,0.002]
[1761009967405,4.3468966,3972.2,3972.1,0.002]
[1761009967610,1.84809198,3972.2,3972.1,0.002]
[1761009968321,4.36558858,3972.2,3972.1,0.002]
[1761009970342,27.92301258,3972.2,3972.1,0.002]
[1761009970670,20.5060556,3972.2,3972.1,0.002]
[1761009970851,29.65467444,3972.2,3972.1,0.002]
[1761009971053,25.08036502,3972.2,3972.1,0.002]
[1761009971570,31.45334144,3972.2,3972.1,0.002]
[1761009971861,29.92842046,3972.2,3972.1,0.002]
[1761009972162,30.32334056,3972.2,3972.1,0.002]
[1761009972367,41.00773656,3972.2,3972.1,0.002]
[1761009972526,40.72674656,3972.2,3972.1,0.002]
[1761009973128,41.23362656,3972.2,3972.1,0.002]
[1761009973326,44.44119456,3972.2,3972.1,0.002]
[1761009973523,43.19972656,3972.2,3972.1,0.002]
[1761009973719,41.02115856,3972.2,3972.1,0.002]
[1761009974358,44.19664156,3972.2,3972.1,0.002]
[1761009975260,44.29762093,3972.2,3972.1,0.002]
[1761009975451,44.54217393,3972.2,3972.1,0.002]
[1761009976157,42.03529493,3972.2,3972.1,0.002]
[1761009976357,14.54217393,3972.2,3972.1,0.002]
[1761009976538,42.37225593,3972.2,3972.1,0.002]
[1761009978459,44.54217393,3972.2,3972.1,0.002]
[1761009979129,42.59931193,3972.2,3972.1,0.002]
[1761009979722,23.68163951,3972.2,3972.1,0.002]
[1761009980127,20.49563951,3972.2,3972.1,0.002]
[1761009980456,23.58066014,3972.2,3972.1,0.002]
[1761009980640,25.53592614,3972.2,3972.1,0.002]
[1761009980840,25.06874514,3972.2,3972.1,0.002]
[1761009981623,27.77602814,3972.2,3972.1,0.002]
[1761009981829,27.11441814,3972.2,3972.1,0.002]
[1761009982040,31.68872756,3972.2,3972.1,0.002]
[1761009982660,36.02793356,3972.2,3972.1,0.002]
[1761009983158,36.12890758,3972.2,3972.1,0.002]
[1761009983563,46.06816858,3972.2,3972.1,0.002]
[1761009984079,45.41719958,3972.2,3972.1,0.002]
[1761009984286,43.17521758,3972.2,3972.1,0.002]
[1761009984678,44.74349258,3972.2,3972.1,0.002]
[1761009985582,47.13087758,3972.2,3972.1,0.002]
[1761009985795,43.45195358,3972.2,3972.1,0.002]
[1761009986797,44.66695358,3972.2,3972.1,0.002]
[1761009987768,47.06695358,3972.2,3972.1,0.002]
[1761009988497,46.26695358,3972.2,3972.1,0.002]
[1761009988676,47.06695358,3972.2,3972.1,0.002]
[1761009988863,46.74762158,3972.2,3972.1,0.002]
[1761009989061,46.24972158,3972.2,3972.1,0.002]
[1761009989593,44.64972158,3972.2,3972.1,0.002]
[1761009991500,44.24690258,3972.2,3972.1,0.002]
[1761009991864,47.72816858,3972.2,3972.1,0.002]
[1761009993670,2.51775013,3971.8,3971.7,0.002]
[1761009993979,38.57387955,3971.8,3971.7,0.002]
[1761009994172,39.17975955,3971.8,3971.7,0.002]
[1761009994373,2.51800372,3971.4,3971.3,0.002]
[1761009994586,34.63629412,3971.4,3971.3,0.002]
[1761009994903,41.52670314,3971.4,3971.3,0.002]
[1761009995200,40.54276614,3971.4,3971.3,0.002]
[1761009995405,39.31653314,3971.4,3971.3,0.002]
[1761009995608,34.12277514,3971.4,3971.3,0.002]
[1761009995907,34.10611314,3971.4,3971.3,0.002]
[1761009996787,34.20710271,3971.4,3971.3,0.002]
[1761009997097,34.21974171,3971.4,3971.3,0.002]
[1761009997606,34.26362707,3971.4,3971.3,0.002]
[1761009997775,34.77050707,3971.4,3971.3,0.002]
[1761009997972,28.68515936,3971.0,3970.9,0.002]
[1761009998178,31.13840178,3971.0,3970.9,0.002]
[1761009998380,31.23740178,3971.0,3970.9,0.002]
[1761009998820,0.50688,3970.7,3970.1,0.002]
[1761009999108,31.93675279,3970.2,3970.1,0.002]
[1761009999310,28.17518321,3970.2,3970.1,0.002]
[1761009999486,20.55915921,3970.2,3970.1,0.002]
[1761009999687,9.48830942,3970.2,3970.1,0.002]
[1761009999889,6.30230942,3970.2,3970.1,0.4333]
[1761010000225,9.48830942,3970.2,3970.1,0.6608]
[1761010002316,12.00707421,3970.2,3970.1,0.6608]
[1761010003214,25.79550621,3970.2,3970.1,0.002]
[1761010003516,18.78267021,3970.2,3970.1,0.002]
[1761010004216,18.54807021,3970.2,3970.1,0.002]
[1761010004510,15.39884921,3970.2,3970.1,0.002]
[1761010004912,9.48830942,3970.2,3970.1,0.002]
[1761010005104,9.48830942,3970.2,3970.1,0.4333]
[1761010005414,12.00707421,3970.2,3970.1,0.4333]
[1761010006021,14.22211821,3970.2,3970.1,0.4333]
[1761010006916,12.00707421,3970.2,3970.1,0.4333]
[1761010007091,9.48830942,3970.2,3970.1,0.4333]
[1761010007420,14.28523321,3970.2,3970.1,0.4333]
[1761010008020,1.728,3970.2,3970.1,0.6608]
[1761010008223,1.728,3970.2,3970.1,0.97896449]
[1761010009190,1.728,3970.2,3970.1,3.49779273]
[1761010010395,1.728,3970.2,3970.1,0.97896449]
[1761010010607,1.728,3970.2,3970.1,0.6608]
[1761010014131,1.728,3970.2,3970.1,3.17962824]
[1761010019544,0.1256,3970.6,3970.5,2.51857448]
[1761010019705,0.1256,3970.6,3970.2,0.4313]
[1761010019903,0.1256,3970.6,3970.3,2.51870135]
[1761010020338,0.1256,3970.6,3970.4,0.4313]
[1761010021239,0.1256,3970.6,3970.4,2.94989324]
[1761010021751,0.1256,3970.6,3970.2,2.51875555]
[1761010021752,0.1256,3970.6,3970.5,0.4466]
[1761010022154,0.1256,3970.6,3970.1,0.2295]
[1761010022333,0.1256,3970.2,3970.1,0.002]
[1761010023556,0.14429198,3970.2,3970.1,0.002]
[1761010024330,0.1256,3970.2,3970.1,0.002]
[1761010024526,0.1256,3970.2,3970.1,0.682]
[1761010024726,0.1256,3970.2,3970.1,3.20082824]
[1761010027154,22.33319719,3970.2,3970.1,0.002]
[1761010027351,21.82988749,3970.2,3970.1,0.002]
[1761010027554,20.76784049,3970.2,3970.1,0.002]
[1761010027958,20.86684049,3970.2,3970.1,0.002]
[1761010028261,21.97157449,3970.2,3970.1,0.002]
[1761010028463,21.65725821,3970.2,3970.1,0.002]
[1761010028671,15.83534121,3970.2,3970.1,0.002]
[1761010029230,15.22176821,3970.2,3970.1,0.002]
[1761010029455,14.17107421,3970.2,3970.1,0.002]
[1761010030167,12.00707421,3970.2,3970.1,0.002]
[1761010030663,4.914,3970.2,3970.1,0.002]
[1761010030966,9.5070014,3970.2,3970.1,0.4486]
[1761010031171,9.48830942,3970.2,3970.1,0.002]
[1761010031954,9.48830942,3970.2,3970.1,0.4486]
[1761010032262,9.48830942,3970.2,3970.1,0.682]
[1761010032764,4.914,3970.2,3970.1,0.682]
[1761010034381,4.914,3970.2,3970.1,0.002]
[1761010035038,4.93269198,3970.2,3970.1,0.002]
[1761010036073,4.914,3970.2,3970.1,0.002]
[1761010036753,4.914,3970.2,3970.1,0.4396]
[1761010036961,4.914,3970.2,3970.1,0.6588]
[1761010037157,4.914,3970.2,3970.1,0.002]
[1761010037350,7.43276479,3970.2,3970.1,0.002]
[1761010038370,13.81935479,3970.2,3970.1,0.002]
[1761010038868,10.21341279,3970.2,3970.1,0.002]
[1761010040034,7.694648,3970.2,3970.1,0.002]
[1761010040248,4.914,3970.2,3970.1,0.002]
[1761010040956,4.914,3970.2,3970.1,0.4396]
[1761010041556,4.914,3970.2,3970.1,0.002]
[1761010042876,10.46220777,3970.2,3970.1,0.002]
[1761010043080,10.44351579,3970.2,3970.1,0.002]
[1761010046280,9.78609979,3970.2,3970.1,0.002]
[1761010047674,9.78609979,3970.2,3970.1,0.6588]
[1761010047675,4.914,3970.2,3970.1,0.6588]
[1761010047875,4.914,3970.2,3970.1,0.2212]
[1761010048179,4.914,3970.2,3970.1,0.6588]
[1761010048568,1.728,3970.2,3970.1,0.6588]
[1761010048870,1.8536,3970.2,3970.1,3.17762824]
[1761010051280,0.1256,3970.2,3970.1,0.6588]
[1761010052559,0.1256,3970.2,3970.1,0.002]
[1761010053862,0.1256,3970.2,3970.1,0.4327]
[1761010054602,0.1256,3970.2,3970.1,0.6691]
[1761010057988,0.1256,3970.2,3970.1,3.18792824]
[1761010058710,1.729,3970.4,3970.2,2.51873648]
[1761010058868,1.729,3970.4,3970.3,0.4307]
[1761010059072,1.729,3970.4,3970.2,0.4307]
[1761010060484,1.729,3970.4,3970.1,0.2384]
[1761010060485,1.74769198,3970.4,3970.1,0.002]
[1761010060669,0.1256,3970.3,3970.1,0.002]
[1761010061170,0.1256,3970.3,3970.1,0.4327]
[1761010061371,0.1256,3970.3,3970.1,0.6691]
[1761010062202,0.1256,3970.3,3970.1,0.2384]
[1761010062396,0.1256,3970.3,3970.2,0.4307]
[1761010063133,0.1256,3970.3,3970.2,2.94946479]
[1761010063279,3.187,3970.4,3970.2,2.94946479]
[1761010063481,3.187,3970.4,3970.3,0.4307]
[1761010064522,0.001,3970.4,3970.3,2.94940135]
[1761010067217,0.001,3970.4,3970.3,0.4307]
[1761010067410,0.001,3970.4,3970.1,2.75722668]
[1761010067615,0.001,3970.4,3970.2,0.4307]
[1761010067927,0.001,3970.4,3970.2,2.94945784]
[1761010068130,0.001,3970.4,3970.3,0.4307]
[1761010069005,4.93269198,3970.4,3970.1,0.002]
[1761010069334,0.1256,3970.2,3970.1,0.002]
[1761010069639,0.1256,3970.2,3970.1,2.95152824]
[1761010072295,0.1256,3970.2,3970.1,0.002]
[1761010077446,0.1256,3970.2,3970.1,0.4327]
[1761010079442,0.1256,3970.2,3970.1,0.002]
[1761010079443,8.931913,3970.2,3970.1,0.002]
[1761010079745,9.93188079,3970.2,3970.1,0.002]
[1761010080042,9.97578245,3970.2,3970.1,0.002]
[1761010080342,4.34576479,3970.2,3970.1,0.002]
[1761010080515,4.36445677,3970.2,3970.1,0.002]
[1761010080943,1.74669198,3970.2,3970.1,0.002]
[1761010081147,4.913,3970.2,3970.1,0.002]
[1761010081311,4.93169198,3970.2,3970.1,0.002]
[1761010081644,7.45045677,3970.2,3970.1,0.002]
[1761010081834,7.43176479,3970.2,3970.1,0.002]
[1761010083241,5.70376479,3970.2,3970.1,0.002]
[1761010084260,7.43176479,3970.2,3970.1,0.002]
[1761010084548,4.913,3970.2,3970.1,0.002]
[1761010086046,7.45045677,3970.2,3970.1,0.002]
[1761010086240,7.43176479,3970.2,3970.1,0.002]
[1761010087849,4.913,3970.2,3970.1,0.002]
[1761010088951,1.728,3970.2,3970.1,0.2358]
[1761010089139,0.001,3970.4,3970.1,0.7016]
[1761010089524,0.1266,3970.4,3970.1,0.7016]
[1761010089719,0.1266,3970.4,3970.1,0.002]
[1761010090550,1.728,3970.2,3970.1,0.002]
[1761010091052,1.728,3970.2,3970.1,0.4678]
[1761010093247,1.74669198,3970.2,3970.1,0.4678]
[1761010093453,1.74669198,3970.2,3970.1,0.7016]
[1761010093652,1.728,3970.2,3970.1,0.7016]
[1761010093854,1.74669198,3970.2,3970.1,0.002]
[1761010095853,1.74669198,3970.2,3970.1,0.4387]
[1761010096075,1.74669198,3970.2,3970.1,0.002]
[1761010098882,1.74669198,3970.2,3970.1,0.4387]
[1761010099574,1.74669198,3970.2,3970.1,0.002]
[1761010101442,1.74669198,3970.2,3970.1,0.4387]
[1761010102772,1.728,3970.2,3970.1,0.4387]
[1761010102987,1.728,3970.2,3970.1,0.6624]
[1761010103752,0.1256,3970.2,3970.1,0.6624]
[1761010104070,0.1256,3970.2,3970.1,3.20641652]
[1761010104379,0.1256,3970.2,3970.1,3.18122824]
[1761010106083,0.001,3970.4,3970.3,2.51870135]
[1761010106573,0.001,3970.4,3970.3,2.95540135]
[1761010111581,0.001,3970.4,3970.2,2.51874307]
[1761010111783,0.001,3970.4,3970.3,0.4484]
[1761010112778,0.001,3970.4,3970.1,0.2257]
[1761010112991,0.001,3970.4,3970.2,2.51875739]
[1761010113364,0.001,3970.4,3970.3,0.4484]
[1761010114712,0.001,3970.4,3970.3,2.96710135]
[1761010115782,0.001,3970.4,3970.3,0.4484]
[1761010118274,0.001,3970.4,3970.3,2.96710135]
[1761010118473,0.001,3970.4,3970.3,0.4484]
[1761010118677,0.001,3970.4,3970.1,0.2257]
[1761010118890,0.001,3970.4,3970.1,0.6741]
[1761010119096,0.001,3970.4,3970.1,3.19287867]
[1761010119387,0.001,3970.4,3970.2,0.4484]
[1761010119588,0.001,3970.4,3970.2,2.51874864]
[1761010120889,0.001,3970.4,3970.3,0.4484]
[1761010121670,0.001,3970.4,3970.3,2.96710135]
[1761010123495,0.001,3970.4,3970.3,7.04196387]
[1761010123980,0.001,3970.4,3970.3,7.04396387]
[1761010124380,0.001,3970.4,3970.3,7.17056387]
[1761010126994,0.001,3970.4,3970.3,7.04396387]
[1761010127905,0.001,3970.4,3970.3,7.17056387]
[1761010140926,0.001,3970.4,3970.3,6.72216387]
[1761010141424,0.001,3970.4,3970.3,7.16246387]
[1761010143414,0.001,3970.4,3970.3,6.72216387]
[1761010143728,0.001,3970.4,3970.3,6.27260135]
[1761010157844,0.001,3970.4,3970.3,6.39820135]
[1761010162317,0.001,3970.4,3970.3,5.95790135]
[1761010162924,0.001,3970.4,3970.3,6.40520135]
[1761010163944,0.001,3970.4,3970.3,5.95790135]
[1761010165360,0.001,3970.4,3970.3,6.40520135]
[1761010168451,0.001,3970.4,3970.3,5.95790135]
[1761010171442,0.001,3970.4,3970.3,6.40430135]
[1761010171944,0.001,3970.4,3970.3,5.95790135]
[1761010173566,0.001,3970.4,3970.3,6.40430135]
[1761010178094,0.001,3970.4,3970.3,5.95790135]
[1761010179185,0.001,3970.4,3970.3,6.40430135]
[1761010179386,0.001,3970.4,3970.3,7.31938387]
[1761010180198,0.001,3970.4,3970.3,4.13438387]
[1761010180400,0.001,3970.4,3970.3,7.31738387]
[1761010184493,0.001,3970.4,3970.3,6.87098387]
[1761010184859,0.001,3970.4,3970.3,7.31738387]
[1761010185657,0.001,3970.4,3970.3,6.87098387]
[1761010185862,0.001,3970.4,3970.3,5.95590135]
[1761010188095,0.001,3970.4,3970.3,5.83030135]
[1761010189190,0.001,3970.4,3970.3,5.70270135]
[1761010190269,0.001,3970.4,3970.3,6.14910135]
[1761010190580,0.001,3970.4,3970.3,6.25007944]
[1761010192297,0.001,3970.4,3970.3,6.88319949]
[1761010198111,0.001,3970.4,3970.3,7.00879949]
[1761010201398,0.001,3970.4,3970.3,9.24367949]
[1761010209212,0.001,3970.4,3970.3,11.89867949]
[1761010209430,0.001,3970.4,3970.3,9.24367949]
[1761010210829,0.001,3970.4,3970.3,9.49597949]
[1761010212618,0.001,3971.0,3970.9,3.02520078]
[1761010212942,0.001,3971.0,3970.9,6.50872086]
[1761010213144,0.001,3971.0,3970.9,7.06652086]
[1761010213317,0.001,3971.0,3970.9,7.16745971]
[1761010216057,0.001,3971.0,3970.9,8.89545971]
[1761010229382,0.001,3971.0,3970.9,5.71445971]
[1761010229669,0.001,3971.0,3970.9,7.95537971]
[1761010229961,0.1,3971.0,3970.9,5.92485963]
[1761010232137,4.67143381,3971.0,3970.9,0.10093885]
[1761010232464,4.67143381,3971.0,3970.8,0.002]
[1761010232664,0.11769198,3970.9,3970.8,0.002]
[1761010232834,7.67652598,3970.9,3970.8,0.002]
[1761010233036,7.006027,3970.9,3970.8,0.002]
[1761010233360,5.081863,3970.9,3970.8,0.002]
[1761010233666,12.17161759,3970.9,3970.8,0.002]
[1761010233864,3.0,3970.9,3970.8,0.002]
[1761010234046,5.53701276,3970.9,3970.8,0.002]
[1761010234246,5.51832078,3970.9,3970.8,0.002]
[1761010234637,11.81775459,3970.9,3970.8,0.002]
[1761010234838,7.24632078,3970.9,3970.8,0.002]
[1761010240970,1.827,3970.9,3970.8,0.002]
[1761010241272,4.36401276,3970.9,3970.8,0.002]
[1761010242399,5.02569198,3970.9,3970.8,0.002]
[1761010242556,5.007,3970.9,3970.8,0.002]
[1761010243160,5.008,3970.9,3970.8,0.002]
[1761010244393,7.52632078,3970.9,3970.8,0.002]
[1761010245382,7.52632078,3970.9,3970.1,0.002]
[1761010245383,2.51876479,3970.2,3970.1,0.002]
[1761010245586,2.51876479,3970.2,3968.0,2.5221445]
[1761010245587,4.24727243,3969.4,3968.0,2.5221445]
[1761010245742,12.45406816,3969.4,3968.1,2.52008185]
[1761010245947,20.76810418,3969.4,3968.1,2.52008185]
[1761010246167,20.96814196,3969.4,3968.1,2.52008185]
[1761010246574,20.86710418,3969.4,3968.1,2.52008185]
[1761010246910,20.86710418,3969.4,3968.0,0.002]
[1761010246911,20.37587619,3969.4,3968.2,2.52003045]
[1761010247116,19.54684119,3969.4,3968.2,2.52003045]
[1761010247410,19.66684119,3969.4,3968.2,2.52003045]
[1761010248500,19.62860619,3969.4,3968.2,2.52003045]
[1761010249077,19.67252008,3969.4,3968.2,2.52003045]
[1761010249593,28.73142608,3969.4,3968.0,2.52215182]
[1761010249943,28.73142608,3969.4,3968.3,2.51996438]
[1761010250497,12.70223208,3969.4,3968.4,2.52188847]
[1761010250699,1.77191389,3969.4,3969.0,2.51951029]
[1761010250874,1.77191389,3969.4,3968.6,0.4636]
[1761010250875,9.48043381,3969.4,3968.7,2.51970867]
[1761010251076,9.48043381,3969.4,3968.8,2.5216378]
[1761010251401,9.57943381,3969.4,3968.9,2.5195858]
[1761010251600,9.57943381,3969.4,3968.8,0.002]
[1761010251601,4.909,3969.4,3968.8,0.002]
[1761010251795,5.008,3969.4,3968.8,0.002]
[1761010251995,5.008,3969.4,3968.8,2.52163308]
[1761010252204,5.008,3969.4,3968.9,2.5195788]